fUST/lending_fUST_20240411
["ID","MTS","AMOUNT","RATE_DAILY","PERIOD"]
[322110795,1712788151934,-500.0,0.00032876,5]
[322110796,1712788151963,-500.0,0.00032876,5]
[322110797,1712788152005,-500.0,0.00032876,5]
[322110798,1712788152030,-558.69,0.00032876,5]
[322110799,1712788152055,-624.27,0.00032876,5]
[322110800,1712788152078,-500.0,0.00032876,14]
[322110801,1712788152201,-500.0,0.00032876,5]
[322110802,1712788152228,-500.0,0.00032876,5]
[322110803,1712788152254,-500.0,0.00032876,5]
[322110804,1712788152280,-500.0,0.00032876,5]
[322110805,1712788152304,-345.84964995,0.00032876,5]
[322110806,1712788152329,-151.8318696,0.00032876,5]
[322110807,1712788152354,-500.0,0.00032876,5]
[322110808,1712788152379,-500.0,0.00032876,5]
[322110809,1712788152404,-509.55,0.00032876,5]
[322110810,1712788152429,-500.0,0.00032876,5]
[322110811,1712788152454,-500.0,0.00032876,5]
[322110812,1712788152481,-500.0,0.00032876,5]
[322110813,1712788152506,-2181.38839789,0.00032876,5]
[322110814,1712788159391,-500.0,0.00032876,5]
[322110815,1712788159417,-500.0,0.00032876,5]
[322110816,1712788159442,-500.0,0.00032876,5]
[322110817,1712788159467,-414.63645938,0.00032876,5]
[322110818,1712788159491,-500.0,0.00032876,5]
[322110819,1712788159516,-500.0,0.00032876,5]
[322110820,1712788159541,-1011.65,0.00032876,5]
[322110821,1712788159567,-500.0,0.00032876,5]
[322110822,1712788159591,-500.0,0.00032876,5]
[322110823,1712788159615,-534.91,0.00032876,5]
[322110824,1712788159640,-500.0,0.00032876,5]
[322110825,1712788159664,-500.0,0.00032876,5]
[322110826,1712788159689,-500.0,0.00032876,5]
[322110827,1712788159714,-500.0,0.00032876,5]
[322110828,1712788159741,-500.0,0.00032876,5]
[322110829,1712788159766,-652.07,0.00032876,5]
[322110830,1712788159793,-500.0,0.00032876,5]
[322110831,1712788159820,-500.0,0.00032876,5]
[322110832,1712788159847,-500.0,0.00032876,5]
[322110833,1712788159874,-1131.37,0.00032876,5]
[322110834,1712788159898,-500.0,0.00032876,5]
[322110835,1712788159923,-632.71,0.00032876,5]
[322110836,1712788159946,-500.0,0.00032876,5]
[322110837,1712788159970,-500.0,0.00032876,5]
[322110838,1712788159995,-500.0,0.00032876,5]
[322110839,1712788160019,-500.0,0.00032876,5]
[322110840,1712788160042,-528.92,0.00032876,5]
[322110841,1712788160067,-500.0,0.00032876,5]
[322110842,1712788160092,-500.0,0.00032876,5]
[322110843,1712788160118,-849.98,0.00032876,5]
[322110844,1712788160146,-500.0,0.00032876,5]
[322110845,1712788160179,-500.0,0.00032876,5]
[322110846,1712788160214,-500.0,0.00032876,5]
[322110847,1712788160245,-500.0,0.00032876,5]
[322110848,1712788160273,-606.73,0.00032876,5]
[322110849,1712788160303,-500.0,0.00032876,5]
[322110850,1712788160333,-500.0,0.00032876,5]
[322110851,1712788160364,-500.0,0.00032876,5]
[322110852,1712788160394,-500.0,0.00032876,5]
[322110853,1712788160424,-500.0,0.00032876,5]
[322110854,1712788160454,-500.0,0.00032876,5]
[322110855,1712788160483,-500.0,0.00032876,5]
[322110856,1712788160512,-504.13,0.00032876,5]
[322110857,1712788160540,-711.17,0.00032876,5]
[322110858,1712788160569,-500.0,0.00032876,5]
[322110859,1712788160599,-3647.97,0.00032876,5]
[322110860,1712788160629,-500.0,0.00032876,5]
[322110861,1712788160659,-500.0,0.00032876,5]
[322110862,1712788160686,-500.0,0.00032876,5]
[322110863,1712788160718,-500.0,0.00032876,5]
[322110864,1712788160747,-500.0,0.00032876,5]
[322110865,1712788160780,-500.0,0.00032876,5]
[322110866,1712788160808,-389.30063778,0.00032876,5]
[322110867,1712788160835,-500.0,0.00032876,5]
[322110868,1712788160875,-500.0,0.00032876,5]
[322110869,1712788160905,-748.87,0.00032876,5]
[322110870,1712788160934,-500.0,0.00032876,5]
[322110871,1712788160964,-500.0,0.00032876,5]
[322110872,1712788160998,-524.97,0.00032876,5]
[322110873,1712788161029,-500.0,0.00032876,5]
[322110874,1712788161059,-3673.31,0.00032876,5]
[322110875,1712788161088,-500.0,0.0003315,5]
[322110876,1712788161116,-629.94,0.0003315,5]
[322110877,1712788161143,-500.0,0.0003315,5]
[322110878,1712788161174,-624.27,0.0003315,5]
[322110879,1712788161203,-500.0,0.0003315,5]
[322110880,1712788161233,-500.0,0.0003315,5]
[322110881,1712788161261,-500.0,0.0003315,5]
[322110882,1712788161289,-500.0,0.0003315,5]
[322110883,1712788161317,-500.0,0.0003315,5]
[322110884,1712788161345,-500.0,0.0003315,5]
[322110885,1712788161372,-500.0,0.0003315,5]
[322110886,1712788161400,-500.0,0.0003315,5]
[322110887,1712788161429,-1011.65,0.0003315,5]
[322110888,1712788161457,-500.0,0.0003315,5]
[322110889,1712788161486,-500.0,0.0003315,5]
[322110890,1712788161515,-500.0,0.0003315,5]
[322110891,1712788161543,-652.07,0.0003315,5]
[322110892,1712788161571,-500.0,0.0003315,5]
[322110893,1712788161600,-500.0,0.0003315,5]
[322110894,1712788161630,-500.0,0.0003315,5]
[322110895,1712788161793,-1131.37,0.0003315,5]
[322110896,1712788161820,-500.0,0.0003315,5]
[322110897,1712788161846,-632.71,0.0003315,5]
[322110898,1712788161872,-500.0,0.0003315,5]
[322110899,1712788161898,-500.0,0.0003315,5]
[322110900,1712788161923,-627.5781922,0.0003315,5]
[322110901,1712788161947,-139.22120397,0.0003315,5]
[322110902,1712788165964,4768.64741585,0.000285,2]
[322110903,1712788166145,-4764.94,0.000285,2]
[322110904,1712788167121,-47748.25935658,0.000285,2]
[322110905,1712788198166,-15011.50649333,0.0003189,2]
[322110950,1712788232485,-3550.9,0.00030933,2]
[322111005,1712788233933,-2329.82517101,0.00030933,2]
[322111017,1712788238549,-34231.11264196,0.00030933,2]
[322111019,1712788238558,-400.0,0.00031889,2]
[322111021,1712788238568,-10936.00795034,0.00032843,5]
[322111023,1712788238577,-500.0,0.00032876,5]
[322111025,1712788238586,-500.0,0.00032876,5]
[322111028,1712788238600,-927.35,0.00032876,5]
[322111030,1712788238609,-481.7685,0.00032876,5]
[322111032,1712788238619,-597.73,0.00032876,5]
[322111034,1712788238628,-500.0,0.00032876,5]
[322111036,1712788238637,-572.25,0.00032876,5]
[322111037,1712788238646,-1037.09,0.00032876,5]
[322111039,1712788238655,-500.0,0.00032876,5]
[322111041,1712788238664,-499.53879603,0.0003315,5]
[322111043,1712788238673,-849.98,0.0003315,5]
[322111044,1712788238682,-395.03,0.0003315,5]
[322111046,1712788238691,-500.0,0.0003315,5]
[322111048,1712788238701,-500.0,0.0003315,5]
[322111050,1712788238710,-606.73,0.0003315,5]
[322111051,1712788238721,-500.0,0.0003315,5]
[322111052,1712788238733,-500.0,0.0003315,5]
[322111053,1712788238745,-597.88,0.0003315,5]
[322111054,1712788238754,-500.0,0.0003315,5]
[322111055,1712788238764,-500.0,0.0003315,5]
[322111056,1712788238773,-500.0,0.0003315,5]
[322111057,1712788238784,-504.13,0.0003315,5]
[322111058,1712788238793,-711.17,0.0003315,5]
[322111059,1712788238803,-3647.97,0.0003315,5]
[322111060,1712788238812,-387.15,0.0003315,5]
[322111061,1712788238824,-500.0,0.0003315,5]
[322111062,1712788238834,-552.1,0.0003315,5]
[322111063,1712788238843,-158.43,0.0003315,5]
[322111064,1712788238854,-500.0,0.0003315,5]
[322111065,1712788238863,-500.0,0.0003315,5]
[322111066,1712788238873,-748.87,0.0003315,5]
[322111067,1712788238883,-500.0,0.0003315,5]
[322111068,1712788238892,-500.0,0.0003315,5]
[322111069,1712788238901,-500.0,0.0003315,5]
[322111070,1712788238910,-3673.31,0.0003315,5]
[322111071,1712788238919,-441.1,0.0003315,5]
[322111072,1712788238928,-500.0,0.0003315,5]
[322111073,1712788238937,-927.35,0.0003315,5]
[322111074,1712788238946,-597.73,0.0003315,5]
[322111075,1712788238955,-500.0,0.0003315,5]
[322111076,1712788238965,-572.25,0.0003315,5]
[322111077,1712788238974,-1037.09,0.0003315,5]
[322111078,1712788238984,-500.0,0.0003315,5]
[322111079,1712788238993,-385.862119,0.00033165,2]
[322111080,1712788239002,-167.048331,0.00033165,2]
[322111081,1712788239013,-4011.50649333,0.00033262,2]
[322111082,1712788239023,-2000.0,0.00033324,2]
[322111083,1712788239037,-500.0,0.00033424,5]
[322111084,1712788239048,-264.14,0.00033424,5]
[322111085,1712788239059,-500.0,0.00033424,5]
[322111086,1712788239071,-500.0,0.00033424,5]
[322111087,1712788239082,-500.0,0.00033424,5]
[322111088,1712788239093,-500.0,0.00033424,5]
[322111089,1712788239103,-208.15,0.00033424,5]
[322111090,1712788239114,-500.0,0.00033424,5]
[322111091,1712788239124,-171.67,0.00033424,5]
[322111092,1712788239135,-632.71,0.00033424,5]
[322111093,1712788239145,-500.0,0.00033424,5]
[322111094,1712788239156,-849.98,0.00033424,5]
[322111095,1712788239165,-500.0,0.00033424,5]
[322111096,1712788239175,-606.73,0.00033424,5]
[322111097,1712788239185,-500.0,0.00033424,5]
[322111098,1712788239195,-500.0,0.00033424,5]
[322111099,1712788239205,-500.0,0.00033424,5]
[322111100,1712788239214,-500.0,0.00033424,5]
[322111101,1712788239223,-504.13,0.00033424,5]
[322111102,1712788239233,-711.17,0.00033424,5]
[322111103,1712788239242,-3647.97,0.00033424,5]
[322111104,1712788239251,-500.0,0.00033424,5]
[322111105,1712788239260,-500.0,0.00033424,5]
[322111106,1712788239270,-500.0,0.00033424,5]
[322111107,1712788239284,-748.87,0.00033424,5]
[322111108,1712788239293,-500.0,0.00033424,5]
[322111109,1712788239390,-500.0,0.00033424,5]
[322111110,1712788239401,-3673.31,0.00033424,5]
[322111111,1712788239410,-500.0,0.00033424,5]
[322111112,1712788239419,-927.35,0.00033424,5]
[322111113,1712788239429,-597.73,0.00033424,5]
[322111114,1712788239439,-500.0,0.00033424,5]
[322111116,1712788239448,-572.25,0.00033424,5]
[322111117,1712788239457,-1037.09,0.00033424,5]
[322111118,1712788239466,-500.0,0.00033424,5]
[322111119,1712788239476,-1210.78934384,0.000336,2]
[322111120,1712788239484,-500.0,0.00033698,5]
[322111121,1712788239494,-500.0,0.00033698,5]
[322111123,1712788239503,-500.0,0.00033698,5]
[322111124,1712788239512,-500.0,0.00033698,5]
[322111126,1712788239522,-500.0,0.00033698,5]
[322111128,1712788239534,-500.0,0.00033698,5]
[322111130,1712788239542,-632.71,0.00033698,5]
[322111132,1712788239551,-207.15720417,0.00033698,5]
[322111133,1712788239560,-849.98,0.00033698,5]
[322111134,1712788239569,-500.0,0.00033698,5]
[322111136,1712788239579,-606.73,0.00033698,5]
[322111137,1712788239588,-500.0,0.00033698,5]
[322111138,1712788239597,-500.0,0.00033698,5]
[322111139,1712788239606,-339.54115864,0.00033698,5]
[322111140,1712788239615,-500.0,0.00033698,5]
[322111141,1712788239624,-504.13,0.00033698,5]
[322111142,1712788239633,-711.17,0.00033698,5]
[322111143,1712788239642,-3647.97,0.00033698,5]
[322111144,1712788239651,-500.0,0.00033698,5]
[322111145,1712788239661,-500.0,0.00033698,5]
[322111147,1712788239670,-500.0,0.00033698,5]
[322111149,1712788239679,-748.87,0.00033698,5]
[322111151,1712788239688,-500.0,0.00033698,5]
[322111153,1712788239697,-500.0,0.00033698,5]
[322111155,1712788239706,-3673.31,0.00033698,5]
[322111157,1712788239715,-500.0,0.00033698,5]
[322111159,1712788239724,-927.35,0.00033698,5]
[322111161,1712788239738,-597.73,0.00033698,5]
[322111163,1712788239747,-500.0,0.00033698,5]
[322111164,1712788239757,-572.25,0.00033698,5]
[322111165,1712788239766,-1037.09,0.00033698,5]
[322111166,1712788239777,-500.0,0.00033698,5]
[322111167,1712788239791,-153.2154472,0.00033723,7]
[322111168,1712788239800,-158.3275038,0.00033755,7]
[322111169,1712788239809,-158.3275038,0.00033771,7]
[322111170,1712788239820,-153.41612328,0.00033843,7]
[322111171,1712788239830,-155.63503246,0.000339,7]
[322111172,1712788239839,-154.9690062,0.0003397,4]
[322111173,1712788239849,-249.76959868,0.00033971,7]
[322111174,1712788239859,-500.0,0.00033971,7]
[322111175,1712788239870,-243.97,0.00033972,5]
[322111176,1712788239880,-500.0,0.00033972,5]
[322111177,1712788239889,-500.0,0.00033972,5]
[322111178,1712788239898,-163.36,0.00033972,5]
[322111179,1712788239908,-500.0,0.00033972,5]
[322111180,1712788239918,-500.0,0.00033972,5]
[322111181,1712788239928,-632.71,0.00033972,5]
[322111182,1712788239938,-849.98,0.00033972,5]
[322111184,1712788239947,-500.0,0.00033972,5]
[322111186,1712788239957,-606.73,0.00033972,5]
[322111188,1712788239966,-500.0,0.00033972,5]
[322111189,1712788239975,-500.0,0.00033972,5]
[322111190,1712788239984,-500.0,0.00033972,5]
[322111191,1712788239993,-504.13,0.00033972,5]
[322111192,1712788240003,-711.17,0.00033972,5]
[322111193,1712788240012,-3647.97,0.00033972,5]
[322111194,1712788240021,-500.0,0.00033972,5]
[322111195,1712788240031,-500.0,0.00033972,5]
[322111196,1712788240041,-500.0,0.00033972,5]
[322111197,1712788240050,-748.87,0.00033972,5]
[322111199,1712788240059,-500.0,0.00033972,5]
[322111201,1712788240070,-500.0,0.00033972,5]
[322111203,1712788240079,-3673.31,0.00033972,5]
[322111205,1712788240088,-500.0,0.00033972,5]
[322111206,1712788240097,-927.35,0.00033972,5]
[322111207,1712788240106,-597.73,0.00033972,5]
[322111208,1712788240116,-500.0,0.00033972,5]
[322111209,1712788240125,-572.25,0.00033972,5]
[322111210,1712788240135,-1037.09,0.00033972,5]
[322111211,1712788240145,-345.40011785,0.00033972,5]
[322111212,1712788240154,-155.63503246,0.00033988,7]
[322111213,1712788240163,-251.21431018,0.00034,7]
[322111214,1712788240172,-153.2154472,0.00034011,7]
[322111215,1712788240182,-500.0,0.00034246,5]
[322111216,1712788240191,-500.0,0.00034246,5]
[322111217,1712788240201,-500.0,0.00034246,5]
[322111218,1712788240210,-500.0,0.00034246,5]
[322111219,1712788240219,-632.71,0.00034246,5]
[322111220,1712788240229,-849.98,0.00034246,5]
[322111221,1712788240238,-500.0,0.00034246,5]
[322111222,1712788240248,-606.73,0.00034246,5]
[322111223,1712788240257,-500.0,0.00034246,5]
[322111224,1712788240266,-500.0,0.00034246,5]
[322111225,1712788240276,-500.0,0.00034246,5]
[322111226,1712788240287,-504.13,0.00034246,5]
[322111227,1712788240297,-711.17,0.00034246,5]
[322111228,1712788240307,-3647.97,0.00034246,5]
[322111229,1712788240316,-500.0,0.00034246,5]
[322111230,1712788240326,-500.0,0.00034246,5]
[322111231,1712788240335,-500.0,0.00034246,5]
[322111232,1712788240344,-748.87,0.00034246,5]
[322111233,1712788240354,-500.0,0.00034246,5]
[322111234,1712788240364,-500.0,0.00034246,5]
[322111235,1712788240374,-3673.31,0.00034246,5]
[322111236,1712788240383,-500.0,0.00034246,5]
[322111237,1712788240394,-927.35,0.00034246,5]
[322111238,1712788240404,-597.73,0.00034246,5]
[322111239,1712788240414,-500.0,0.00034246,5]
[322111240,1712788240424,-572.25,0.00034246,5]
[322111241,1712788240434,-1037.09,0.00034246,5]
[322111242,1712788240443,-158.3275038,0.00034404,7]
[322111243,1712788240452,-500.0,0.0003452,5]
[322111244,1712788240462,-527.04612935,0.0003452,5]
[322111245,1712788240471,-500.0,0.0003452,5]
[322111246,1712788240480,-500.0,0.0003452,5]
[322111247,1712788240489,-151.0,0.0003452,2]
[322111248,1712788240499,-632.71,0.0003452,5]
[322111249,1712788240508,-849.98,0.0003452,5]
[322111250,1712788240517,-500.0,0.0003452,5]
[322111251,1712788240527,-606.73,0.0003452,5]
[322111252,1712788240539,-500.0,0.0003452,5]
[322111253,1712788240549,-500.0,0.0003452,5]
[322111254,1712788240558,-421.56,0.0003452,5]
[322111255,1712788240567,-504.13,0.0003452,5]
[322111256,1712788240577,-711.17,0.0003452,5]
[322111257,1712788240586,-151.0,0.0003452,2]
[322111258,1712788240595,-3647.97,0.0003452,5]
[322111259,1712788240605,-500.0,0.0003452,5]
[322111260,1712788240615,-469.29,0.0003452,5]
[322111261,1712788240624,-500.0,0.0003452,5]
[322111262,1712788240634,-298.089831,0.0003452,2]
[322111263,1712788240644,-748.87,0.0003452,5]
[322111264,1712788240653,-508.78854275,0.0003452,5]
[322111265,1712788240663,-500.0,0.0003452,5]
[322111266,1712788240672,-3673.31,0.0003452,5]
[322111267,1712788240682,-500.0,0.0003452,5]
[322111268,1712788240691,-927.35,0.0003452,5]
[322111269,1712788240701,-597.73,0.0003452,5]
[322111270,1712788240711,-500.0,0.0003452,5]
[322111271,1712788240721,-572.25,0.0003452,5]
[322111272,1712788240732,-1037.09,0.0003452,5]
[322111273,1712788240741,-158.3275038,0.00034568,7]
[322111274,1712788240751,-155.63503246,0.00034572,7]
[322111275,1712788240760,-158.3275038,0.000347,7]
[322111276,1712788240769,-499.72895746,0.00034794,5]
[322111277,1712788240778,-500.0,0.00034794,5]
[322111278,1712788240789,-500.0,0.00034794,5]
[322111279,1712788240798,-632.71,0.00034794,5]
[322111280,1712788240809,-849.98,0.00034794,5]
[322111281,1712788240819,-500.0,0.00034794,5]
[322111282,1712788240829,-606.73,0.00034794,5]
[322111283,1712788240838,-500.0,0.00034794,5]
[322111284,1712788240847,-500.0,0.00034794,5]
[322111285,1712788240857,-504.13,0.00034794,5]
[322111286,1712788240866,-711.17,0.00034794,5]
[322111287,1712788240875,-3647.97,0.00034794,5]
[322111288,1712788240884,-500.0,0.00034794,5]
[322111289,1712788240893,-500.0,0.00034794,5]
[322111290,1712788240902,-748.87,0.00034794,5]
[322111291,1712788240911,-260.06,0.00034794,5]
[322111292,1712788240921,-3673.31,0.00034794,5]
[322111293,1712788240930,-151.0,0.00034794,2]
[322111294,1712788240939,-500.0,0.00034794,5]
[322111295,1712788240949,-927.35,0.00034794,5]
[322111296,1712788240958,-597.73,0.00034794,5]
[322111297,1712788240968,-151.0,0.00034794,2]
[322111298,1712788240978,-500.0,0.00034794,5]
[322111299,1712788240988,-572.25,0.00034794,5]
[322111300,1712788240997,-1037.09,0.00034794,5]
[322111301,1712788241007,-596.25390228,0.00035,2]
[322111302,1712788241017,-668.97750328,0.00035,4]
[322111303,1712788241026,-6857.88352877,0.00035,4]
[322111304,1712788241040,-154.86062544,0.00035,4]
[322111305,1712788241050,-500.0,0.00035068,5]
[322111306,1712788241061,-500.0,0.00035068,5]
[322111307,1712788241072,-632.71,0.00035068,5]
[322111308,1712788241082,-849.98,0.00035068,5]
[322111309,1712788241091,-500.0,0.00035068,5]
[322111310,1712788241102,-606.73,0.00035068,5]
[322111311,1712788241112,-500.0,0.00035068,5]
[322111312,1712788241123,-500.0,0.00035068,5]
[322111313,1712788241132,-504.13,0.00035068,5]
[322111314,1712788241142,-711.17,0.00035068,5]
[322111315,1712788241151,-3647.97,0.00035068,5]
[322111316,1712788241160,-500.0,0.00035068,5]
[322111317,1712788241169,-500.0,0.00035068,5]
[322111318,1712788241178,-748.87,0.00035068,5]
[322111319,1712788241187,-3673.31,0.00035068,5]
[322111320,1712788241196,-500.0,0.00035068,5]
[322111321,1712788241206,-927.35,0.00035068,5]
[322111322,1712788241215,-597.73,0.00035068,5]
[322111323,1712788241224,-500.0,0.00035068,5]
[322111324,1712788241233,-572.25,0.00035068,5]
[322111325,1712788241242,-1037.09,0.00035068,5]
[322111326,1712788241252,-560.0,0.00035078,2]
[322111327,1712788241261,-158.3275038,0.00035079,7]
[322111328,1712788241270,-153.2154472,0.000352,7]
[322111329,1712788241280,-165895.93470869,0.000352,2]
[322111330,1712788241289,-158.3275038,0.00035213,7]
[322111331,1712788241298,-153.2154472,0.0003527,7]
[322111332,1712788241308,-29914.72347765,0.00035342,5]
[322111333,1712788241317,-500.0,0.00035342,5]
[322111334,1712788241326,-500.0,0.00035342,5]
[322111335,1712788241335,-151.0,0.00035342,2]
[322111336,1712788241344,-632.71,0.00035342,5]
[322111337,1712788241354,-849.98,0.00035342,5]
[322111338,1712788241363,-346.75433016,0.00035342,5]
[322111339,1712788241372,-606.73,0.00035342,5]
[322111340,1712788241382,-500.0,0.00035342,5]
[322111341,1712788241391,-500.0,0.00035342,5]
[322111342,1712788241413,-504.13,0.00035342,5]
[322111343,1712788241425,-711.17,0.00035342,5]
[322111344,1712788241435,-3647.97,0.00035342,5]
[322111345,1712788241446,-500.0,0.00035342,5]
[322111346,1712788241455,-748.87,0.00035342,5]
[322111347,1712788241466,-3673.31,0.00035342,5]
[322111348,1712788241475,-500.0,0.00035342,5]
[322111349,1712788241485,-927.35,0.00035342,5]
[322111350,1712788241495,-597.73,0.00035342,5]
[322111351,1712788241504,-500.0,0.00035342,5]
[322111352,1712788241513,-572.25,0.00035342,5]
[322111353,1712788241524,-1037.09,0.00035342,5]
[322111354,1712788241536,-1331.86827823,0.000354,6]
[322111355,1712788241545,-151.0,0.000354,2]
[322111356,1712788241556,-255.602588,0.000354,2]
[322111357,1712788241565,-158.3275038,0.00035502,7]
[322111358,1712788241574,-500.0,0.00035616,5]
[322111359,1712788241583,-500.0,0.00035616,5]
[322111360,1712788241593,-632.71,0.00035616,5]
[322111361,1712788241604,-849.98,0.00035616,5]
[322111362,1712788241614,-606.73,0.00035616,5]
[322111363,1712788241623,-500.0,0.00035616,5]
[322111364,1712788241632,-500.0,0.00035616,5]
[322111365,1712788241642,-504.13,0.00035616,5]
[322111366,1712788241651,-711.17,0.00035616,5]
[322111367,1712788241661,-3647.97,0.00035616,5]
[322111368,1712788241670,-500.0,0.00035616,5]
[322111369,1712788241679,-748.87,0.00035616,5]
[322111370,1712788241689,-3673.31,0.00035616,5]
[322111371,1712788241698,-196.08086237,0.00035616,5]
[322111372,1712788241708,-927.35,0.00035616,5]
[322111373,1712788241719,-597.73,0.00035616,5]
[322111374,1712788241729,-572.25,0.00035616,5]
[322111375,1712788241740,-500.0,0.00035616,5]
[322111376,1712788241750,-1037.09,0.00035616,5]
[322111377,1712788241760,-3303.526522,0.00035616,120]
[322111378,1712788241770,-166.0,0.00035654,35]
[322111379,1712788241780,-166.0,0.00035664,35]
[322111380,1712788241791,-150.5,0.00035668,35]
[322111381,1712788241801,-984.0,0.00035668,35]
[322111382,1712788241813,-166.0,0.00035674,35]
[322111383,1712788241824,-150.5,0.00035678,35]
[322111384,1712788241835,-984.0,0.00035678,35]
[322111385,1712788241845,-151.0,0.00035684,2]
[322111386,1712788241854,-151.0,0.00035684,2]
[322111387,1712788241864,-151.0,0.00035684,2]
[322111388,1712788241874,-151.0,0.00035684,2]
[322111389,1712788241884,-153.75,0.00035684,2]
[322111390,1712788241893,-336478.53875905,0.00035685,60]
[322111466,1712788243318,-21057.24366944,0.00035685,60]
[322111692,1712788258214,156.74777884,0.00026763,2]
[322111694,1712789233149,-340.187408,0.00027397,2]
[322111695,1712789233173,-834.94934475,0.00028353,2]
[322111696,1712789233195,-166.666666,0.00028893,2]
[322111697,1712789233215,-1603.05919841,0.00029325,2]
[322111698,1712789345100,-236.05054276,0.00029325,2]
[322111699,1712789352123,-182.69382473,0.00029325,2]
[322111700,1712789352144,-561.6599222,0.00029784,2]
[322111701,1712789352166,-527.0856825,0.0002993,2]
[322111702,1712789352188,-122.42057057,0.00030199,2]
[322111703,1712789405571,4982.88,0.00029293,2]
[322111704,1712789405593,4756.47,0.00029293,2]
[322111826,1712789438632,-687.9453309,0.00027225,2]
[322111828,1712789438643,-20115.31785794,0.00029293,2]
[322111830,1712789438652,-45.75587982,0.00030199,2]
[322111832,1712789438661,-178.329174,0.00030922,2]
[322111834,1712789438670,-400.0,0.00030932,2]
[322111836,1712789438679,-500.0,0.00030933,2]
[322111838,1712789438688,-2914.164156,0.000315,2]
[322111840,1712789438697,-1210.66841003,0.00031601,2]
[322111842,1712789438707,-1210.66841003,0.00031601,2]
[322111844,1712789438716,-156.08588259,0.0003189,20]
[322111846,1712789438726,-213.65463678,0.0003189,4]
[322111848,1712789438736,-200.0,0.0003189,2]
[322111850,1712789438745,-941.87671773,0.0003189,30]
[322111852,1712789438757,-162.05730382,0.0003189,4]
[322111854,1712789438766,-154.9690062,0.0003189,2]
[322111856,1712789438775,-168.17645039,0.00031984,2]
[322111858,1712789438784,-3882.69919405,0.00032,5]
[322111860,1712789438793,-687.9453309,0.00032225,2]
[322111862,1712789438802,-166.666666,0.00032832,2]
[322111864,1712789438812,-500.0,0.00032876,5]
[322111866,1712789438821,-500.0,0.00032876,5]
[322111868,1712789438831,-3.01959282,0.00032876,5]
[322111870,1712789438843,-496.98040718,0.00032876,5]
[322111872,1712789438852,-372.3906513,0.00032876,5]
[322111874,1712789438861,-500.0,0.00032876,5]
[322111876,1712789438870,-500.0,0.00032876,5]
[322111878,1712789438878,-500.0,0.00032876,5]
[322111880,1712789438888,-425.30039637,0.00032876,5]
[322111881,1712789438897,-500.0,0.00032876,5]
[322111883,1712789438907,-500.0,0.00032876,5]
[322111885,1712789438916,-500.0,0.00032876,5]
[322111887,1712789438924,-500.0,0.00032876,5]
[322111889,1712789438935,-500.0,0.00032876,5]
[322111891,1712789438944,-500.0,0.00032876,5]
[322111893,1712789438954,-500.0,0.00032876,5]
[322111895,1712789438963,-513.97601445,0.00032876,5]
[322111897,1712789438972,-500.0,0.00032876,5]
[322111899,1712789438981,-894.92,0.00032876,5]
[322111901,1712789438990,-500.0,0.00032876,5]